Cogmind - Beta 17 @@@ ROGUE MODE // 2026.07.07 @ 17:36:09 Player: Robbedoes2000 Result: Destroyed by C-35 Carver with Carbide Saw Performance ------------- Evolutions (5) 2500 Regions Visited (16) 3200 Robots Destroyed (47) 235 Value Destroyed (1739) 1739 Prototype IDs (29) 580 Alien Tech Used (0) 0 Bonus (2435) 2435 TOTAL SCORE: 10689 Bonus ------- Follower Combat Kills 35 Entered Garrisons 600 Used RIF Installer 1000 Entered DSFs 500 Aligned with FarCom 300 Cogmind --------- Core Integrity 0/1000 Matter 156/300 Energy 100/100 System Corruption 5% Temperature Cool (0) Movement Core (50) Location -5/DSF Parts ------- > --- POWER (2) -------- (None) > --- PROPULSION (5) --- (None) > --- UTILITY (7) ------ Improved Signal Interpreter > --- WEAPON (3) ------- (None) > --- INVENTORY (5) ---- Medium Storage Unit Peak State ------------ > --- POWER ------------ Light Nuclear Core > --- PROPULSION ------- Improved Medium Treads Carbon-fiber Leg Armored Wheel Cooled Airjet Xenon Bombardment Thruster > --- UTILITY ---------- Trap Scanner Improved Sensor Array Improved Signal Interpreter Transport Network Coupler Transmission Jammer Relay Coupler [NC] > --- WEAPON ----------- Proton Cannon Remote Datajack > --- INVENTORY -------- Fission Core Medium Storage Unit EM Pulse Cannon Remote Datajack [Rating: 47] Favorites ----------- Power Ion Engine Engine Ion Engine Power Core Light Nuclear Core Propulsion Armored Treads Treads Armored Treads Leg Aluminum Leg Wheel Armored Wheel Hover Unit Cooled Airjet Flight Unit Xenon Bombardment Thruster Utility Transport Network Coupler Device Trap Scanner Storage Medium Storage Unit Processor Transport Network Coupler Hackware Relay Coupler [NC] Protection Hardened Light Armor Plating Weapon Heavy Particle Gun Energy Gun Heavy Particle Gun Energy Cannon Advanced Beam Cannon Ballistic Gun Heavy Assault Rifle Launcher Shock Bomb Launcher Special Weapon Remote Datajack Build | -11 -10 -10 -10 -9 -8 -8 -8 -7 -7 -7 -6 -6 -5 -5 -5 -5 ------- Run | Yrd Mat Min Exi Min Mat Gar Mat Fac Gar Fac Fac Ext Fac Gar Fac DSF Slots Evolved 10 | . . . . . 4 . . 2 . . 2 . 2 . . . Power 1 | . . . . . . . . . . . . . 1 . . . Propulsion 3 | . . . . . 2 . . . . . 1 . . . . . Utility 5 | . . . . . 2 . . 1 . . 1 . 1 . . . Weapon 1 | . . . . . . . . 1 . . . . . . . . Parts Attached 56 | 7 1 1 . 1 13 4 3 . . 7 5 . 9 . 2 3 Power 8 | 1 . . . . 1 1 1 . . 1 . . 1 . 1 1 Engine 4 | 1 . . . . 1 1 . . . . . . . . 1 . Core 4 | . . . . . . . 1 . . 1 . . 1 . . 1 Reactor . | . . . . . . . . . . . . . . . . . Propulsion 19 | 2 . . . . 5 . 1 . . 3 2 . 6 . . . Treads 6 | . . . . . 4 . 1 . . . 1 . . . . . Leg 3 | 2 . . . . . . . . . 1 . . . . . . Wheel 2 | . . . . . . . . . . 1 . . 1 . . . Hover 3 | . . . . . 1 . . . . 1 . . 1 . . . Flight 5 | . . . . . . . . . . . 1 . 4 . . . Utility 13 | 2 . . . . 3 2 1 . . 2 2 . . . . 1 Device 6 | 1 . . . . 1 1 . . . 1 1 . . . . 1 Storage 2 | 1 . . . . 1 . . . . . . . . . . . Processor 2 | . . . . . 1 . . . . . 1 . . . . . Hackware 1 | . . . . . . . . . . 1 . . . . . . Protection 2 | . . . . . . 1 1 . . . . . . . . . Artifact . | . . . . . . . . . . . . . . . . . Weapon 16 | 2 1 1 . 1 4 1 . . . 1 1 . 2 . 1 1 Energy Gun 6 | 2 . 1 . 1 1 . . . . . . . . . 1 . Energy Cannon 4 | . . . . . 1 . . . . . 1 . 1 . . 1 Ballistic Gun 3 | . 1 . . . 2 . . . . . . . . . . . Ballistic Cannon . | . . . . . . . . . . . . . . . . . Launcher 1 | . . . . . . 1 . . . . . . . . . . Special Weapon 2 | . . . . . . . . . . 1 . . 1 . . . Impact Weapon . | . . . . . . . . . . . . . . . . . Slashing Weapon . | . . . . . . . . . . . . . . . . . Piercing Weapon . | . . . . . . . . . . . . . . . . . Special Melee Weapon . | . . . . . . . . . . . . . . . . . Unidentified Prototypes 4 | . . . . . 3 . . . . 1 . . . . . . Parts Lost 36 | . . . . 2 . 2 2 . 10 . . 5 4 10 . 1 Power 4 | . . . . . . 1 . . 1 . . 1 . 1 . . Propulsion 17 | . . . . 2 . . 1 . 4 . . 3 1 5 . 1 Utility 8 | . . . . . . 1 1 . 1 . . . 2 3 . . Weapon 7 | . . . . . . . . . 4 . . 1 1 1 . . Highest Loss Streak 10 | . . . . 2 . 1 2 . 7 . . 5 4 10 . 1 To Critical Strikes 1 | . . . . . . . 1 . . . . . . . . . Average Backups 6 | 3 7 7 7 7 8 8 9 5 4 3 4 4 3 5 4 4 Power 1 | . 1 1 1 1 1 . . 2 2 1 1 1 . 1 1 1 Propulsion . | 1 1 1 . . . 1 . . . . . . . 2 1 . Utility 2 | . 1 2 3 4 4 4 3 2 2 1 1 1 1 1 1 1 Weapon 2 | . 3 3 2 2 2 3 3 1 . . 1 1 1 1 1 1 Tool/Special . | . . . . . . . . . . . . . . . . . Unused Backups 10 | . 1 . 3 . 1 1 1 . . . 2 . . . . 1 Power 2 | . . . . . . 1 . . . . 1 . . . . . Propulsion 2 | . 1 . 1 . . . . . . . . . . . . . Utility 3 | . . . . . 1 . 1 . . . . . . . . 1 Weapon 3 | . . . 2 . . . . . . . 1 . . . . . Tool/Special . | . . . . . . . . . . . . . . . . . Average Slot Usage (%) 77 | . 91 100 100 60 77 91 87 89 77 50 69 92 57 33 13 13 Engine 6 | . 12 14 14 14 9 8 5 . . . . . . . 2 1 Core 1 | . . . . . . . 3 7 6 3 6 6 . 2 . . Treads 13 | . . . . . 25 36 36 30 20 . 1 6 4 . . . Leg 7 | . 26 28 28 3 . . . . . 5 6 5 . . . . Wheel 1 | . . . . . . . . . . 4 6 6 4 1 . . Hover 1 | . . . . . 1 . . . . 5 6 6 4 . 5 5 Device 12 | . 12 14 14 14 13 9 9 15 14 11 14 20 16 5 . . Storage 7 | . 14 14 14 14 9 9 9 7 6 . . . . . . . Processor 5 | . . . . . 4 9 9 7 7 7 6 13 11 9 5 5 Hackware 1 | . . . . . . . . . . 3 6 6 4 . . . Protection 1 | . . . . . . 5 6 . . . . . . . . . Energy Gun 7 | . 22 14 14 14 8 8 7 7 9 . . . . . . . Energy Cannon 2 | . . . . . . 3 1 6 6 . 1 5 3 . . . Ballistic Gun 3 | . 1 14 14 . 5 . . . . . . . . . . . Peak Build Rating 47 | 7 9 10 11 22 32 37 39 34 34 26 47 47 40 30 25 26 Average Rating 23 | 4 7 9 10 19 26 31 31 33 27 19 32 45 29 13 12 12 On Entrance 19 | . 7 9 10 11 20 29 25 25 34 4 26 47 26 30 5 20 Avg Prop Armor Cover (%) 20 | . . . . . . . . . . 18 19 21 20 7 . 25 Naked Turns . | . . . . . . . . . . . . . . . . . Heaviest Build 32 | 15 16 17 17 19 25 32 29 31 31 11 20 20 24 16 13 18 Greatest Support 80 | 20 20 20 20 20 80 80 80 80 80 12 30 12 17 16 17 17 Greatest Overweight (x) 6 | . 1 . . 6 6 . . . 1 1 1 1 5 1 . 1 Average Overweight (x) . | . . . . 5 1 . . . . . . . . . . . Largest Inventory Capacity 10 | 8 8 8 8 8 10 10 10 10 10 5 5 5 5 5 5 5 Average Capacity 7 | 6 8 8 8 8 9 10 10 10 9 5 5 5 5 5 5 5 Most Carried 10 | 7 8 8 8 8 10 10 10 7 5 5 5 5 5 5 5 5 Average Carried 6 | 3 7 7 7 7 9 9 9 5 4 3 4 4 3 5 4 4 Final Capacity 10 | 8 8 8 8 8 10 10 10 10 5 5 5 5 5 5 5 5 Final Carried 10 | 6 7 8 8 8 10 10 8 5 4 3 4 5 5 5 4 1 Class Distribution -------------------- 75% | Mutant 21% | Skirmisher 3% | Scout Dominant Class ---------------- Mutant | -10/Materials Mutant | -10/Mines Mutant | -10/Exiles Mutant | -9/Mines Skirmisher | -8/Materials Mutant | -8/Garrison Mutant | -8/Materials Skirmisher | -7/Factory Skirmisher | -7/Garrison Mutant | -7/Factory Mutant | -6/Factory Skirmisher | -6/Extension Mutant | -5/Factory Mutant | -5/Garrison Mutant | -5/Factory Mutant | -5/DSF Resources | -11 -10 -10 -10 -9 -8 -8 -8 -7 -7 -7 -6 -6 -5 -5 -5 -5 ----------- Run | Yrd Mat Min Exi Min Mat Gar Mat Fac Gar Fac Fac Ext Fac Gar Fac DSF Matter Collected 936 | 264 . 131 . 10 176 110 56 . 79 . . 3 107 . . . Remotely . | . . . . . . . . . . . . . . . . . Salvage Created 1540 | 29 . 226 . 75 199 502 143 . 259 . . . 107 . . . Parts 89 | 5 . 9 . 8 14 24 6 . 15 . . . 8 . . . Haulers Intercepted 3 | . . . . . 2 . 1 . . . . . . . . . Recyclers Shooed 1 | . . . . . . . 1 . . . . . . . . . Parts Field Recycled . | . . . . . . . . . . . . . . . . . Retrieved Matter . | . . . . . . . . . . . . . . . . . Parts Self-Destructed . | . . . . . . . . . . . . . . . . . Prevented . | . . . . . . . . . . . . . . . . . Parts Restored . | . . . . . . . . . . . . . . . . . Kills | -11 -10 -10 -10 -9 -8 -8 -8 -7 -7 -7 -6 -6 -5 -5 -5 -5 ------- Run | Yrd Mat Min Exi Min Mat Gar Mat Fac Gar Fac Fac Ext Fac Gar Fac DSF Combat Hostiles Destroyed 40 | . . 5 . 6 1 13 4 . 7 . . . 4 . . . Guns 27 | . . 5 . 6 1 9 4 . 2 . . . . . . . Cannons 8 | . . . . . . 2 . . 2 . . . 4 . . . AOE 4 | . . . . . . 2 . . 2 . . . . . . . Classes Destroyed 10 | 1 . 3 . . 3 2 . . 1 . . . . . . . Tunneler 1 | 1 . . . . . . . . . . . . . . . . Hauler 3 | . . . . . 2 . 1 . . . . . . . . . Recycler 1 | . . 1 . . . . . . . . . . . . . . Mechanic 1 | . . . . . 1 . . . . . . . . . . . Watcher 1 | . . . . . 1 . . . . . . . . . . . Swarmer 26 | . . 3 . 6 . 4 3 . 6 . . . 4 . . . Cutter 2 | . . . . . . 2 . . . . . . . . . . Grunt 8 | . . 2 . . 1 5 . . . . . . . . . . Sentry 3 | . . . . . . 2 1 . . . . . . . . . Programmer 1 | . . . . . . . . . 1 . . . . . . . Best Kill Streak 4 | 1 . 3 . 3 1 4 4 . 3 . . . 3 . . . Combat Bots Only 4 | . . 3 . 3 1 4 3 . 3 . . . 3 . . . Max Kills in Single Turn 2 | 1 . 2 . 1 1 2 1 . 2 . . . 1 . . . Gunslinging 1 | . . 1 . . . . . . . . . . . . . . Exploded 2 | . . . . . . 2 . . 2 . . . . . . . Melee . | . . . . . . . . . . . . . . . . . Uniques/NPCs Destroyed . | . . . . . . . . . . . . . . . . . Combat | -11 -10 -10 -10 -9 -8 -8 -8 -7 -7 -7 -6 -6 -5 -5 -5 -5 -------- Run | Yrd Mat Min Exi Min Mat Gar Mat Fac Gar Fac Fac Ext Fac Gar Fac DSF Hostile Shots Fired 551 | . . 21 . 37 . 75 39 . 163 7 16 63 25 89 . 16 Missed 170 | . . 4 . 12 . 20 7 . 63 3 4 23 6 25 . 3 Hits 381 | . . 17 . 25 . 55 32 . 100 4 12 40 19 64 . 13 Melee 11 | . . . . . . 1 . . . . . . . . . 10 Projectile 370 | . . 17 . 25 . 54 32 . 100 4 12 40 19 64 . 3 AOE 2 | . . . . . . 2 . . . . . . . . . . Critical Strikes 12 | . . . . . . . 2 . 1 1 1 1 . 1 . 5 Part Disruptions 1 | . . . . . . . . . 1 . . . . . . . Damage Taken 5955 | . . 201 . 204 . 1140 418 . 1359 63 182 645 278 1003 . 462 Core 1751 | . . 26 . 55 . 83 22 . 294 . . 253 . 693 . 325 Absorbed by Shields 91 | . . . . . . . . . 29 . . . . 40 . 22 Core Remaining (%) 75 | 100 . . . 67 . . 80 . . 58 . 70 . . . . Volleys Fired 111 | 1 2 16 . . 10 22 6 . 26 9 5 1 11 . . 2 Largest 3 | 2 2 2 . . 2 2 1 . 3 1 1 1 1 . . 1 Hottest 188 | 100 100 73 . . 80 123 55 . 188 5 75 75 75 . . 60 Shots Fired 236 | 2 4 31 . 25 18 48 37 . 43 9 5 1 11 . . 2 Gun 164 | 2 4 31 . 25 18 27 37 . 18 . . . . . . 2 Cannon 52 | . . . . . . 16 . . 20 . 4 1 11 . . . Launcher 10 | . . . . . . 5 . . 5 . . . . . . . Special 10 | . . . . . . . . . . 9 1 . . . . . Kinetic 26 | . . 15 . . 11 . . . . . . . . . . . Thermal 172 | 2 4 16 . 25 7 43 37 . 38 . . . . . . . Explosive . | . . . . . . . . . . . . . . . . . Electromagnetic 28 | . . . . . . 5 . . 5 . 4 1 11 . . 2 Robot Hit Streak 11 | 1 2 8 . 5 5 11 8 . 6 6 1 . 4 . . 2 Robot Miss Streak 6 | . 2 1 . 4 2 3 2 . 3 2 3 . 6 . . . Penetration Max . | . . . . . . . . . . . . . . . . . Secondary Targets 1 | . . 1 . . . . . . . . . . . . . . Max Gunslinging Chain 1 | . . 1 . . . . . . . . . . . . . . Autonomous 72 | . . . . 25 1 15 31 . . . . . . . . . Shots Hit Robots 147 | 1 2 25 . 14 12 32 25 . 24 6 1 . 3 . . 2 Core Hits 67 | 1 1 8 . 6 7 19 7 . 11 . . . 4 2 . 1 Critical Kills . | . . . . . . . . . . . . . . . . . Critical Parts Destroyed . | . . . . . . . . . . . . . . . . . Critical Strikes 2 | . . 1 . . . . . . 1 . . . . . . . Burn 2 | . . 1 . . . . . . 1 . . . . . . . Melee Attacks . | . . . . . . . . . . . . . . . . . Impact . | . . . . . . . . . . . . . . . . . Slashing . | . . . . . . . . . . . . . . . . . Piercing . | . . . . . . . . . . . . . . . . . Sneak Attacks . | . . . . . . . . . . . . . . . . . Combat Hostiles . | . . . . . . . . . . . . . . . . . Follow-up Attacks . | . . . . . . . . . . . . . . . . . Damage Inflicted 3561 | 12 24 345 . 440 215 944 752 . 651 8 . . 94 40 . 36 Guns 2558 | 12 24 345 . 440 215 525 739 . 222 . . . . . . 36 Cannons 535 | . . . . . . 164 . . 277 . . . 94 . . . Explosions 407 | . . . . . . 255 . . 152 . . . . . . . Melee . | . . . . . . . . . . . . . . . . . Ramming 61 | . . . . . . . 13 . . 8 . . . 40 . . Kinetic 283 | . . 177 . . 106 . . . . . . . . . . . Thermal 2680 | 12 24 168 . 440 109 689 739 . 499 . . . . . . . Explosive . | . . . . . . . . . . . . . . . . . Electromagnetic 537 | . . . . . . 255 . . 152 . . . 94 . . 36 Impact . | . . . . . . . . . . . . . . . . . Slashing . | . . . . . . . . . . . . . . . . . Piercing . | . . . . . . . . . . . . . . . . . Highest Corruption 5 | . . . . . . 1 1 . 3 4 3 3 . 5 5 5 Average Corruption 2 | . . . . . . 1 1 . 2 3 2 3 . 5 5 5 Corruption Purged . | . . . . . . . . . . . . . . . . . Corruption Blocked . | . . . . . . . . . . . . . . . . . Effects 20 | . . . . . . 4 3 . 2 4 . 2 . . 2 3 Message Errors 6 | . . . . . . 2 1 . . 2 . . . . . 1 Matter Fused 4 | . . . . . . 1 1 . . 1 . . . . . 1 Heat Flow Errors 4 | . . . . . . . . . . . . 2 . . 1 1 Energy Discharges 4 | . . . . . . . 1 . 2 1 . . . . . . Data Loss (minor) 1 | . . . . . . . . . . . . . . . 1 . Alerts 1 | . . . . . . 1 . . . . . . . . . . Overload Shots . | . . . . . . . . . . . . . . . . . Overflow Damage . | . . . . . . . . . . . . . . . . . Projectiles . | . . . . . . . . . . . . . . . . . Explosions . | . . . . . . . . . . . . . . . . . Melee . | . . . . . . . . . . . . . . . . . Knockbacks . | . . . . . . . . . . . . . . . . . Impact . | . . . . . . . . . . . . . . . . . Kinetic . | . . . . . . . . . . . . . . . . . Secondary . | . . . . . . . . . . . . . . . . . Self-Inflicted Damage 112 | . . . . . . 67 . . 23 4 . . . 18 . . Shots 5 | . . . . . . 3 . . 2 . . . . . . . Rammed 20 | . . . . . . . 4 . . 4 . . . 12 . . Targets Rammed 20 | . . . . . . . 4 . . 4 . . . 12 . . Kicked . | . . . . . . . . . . . . . . . . . Crushed . | . . . . . . . . . . . . . . . . . Highest Temperature 285 | 39 78 189 . . 28 63 . . 184 . 42 285 18 2 151 137 Average Temperature 58 | 20 39 78 . . 10 23 . . 89 . 20 123 8 2 91 77 Received Heat Transfer 1253 | . . 81 . . . 306 81 . 214 54 . 436 . 81 . . Siege Activations . | . . . . . . . . . . . . . . . . . Martial Activations . | . . . . . . . . . . . . . . . . . Shielding Activations . | . . . . . . . . . . . . . . . . . Robots Disrupted . | . . . . . . . . . . . . . . . . . Combat Hostiles . | . . . . . . . . . . . . . . . . . Robots Corrupted . | . . . . . . . . . . . . . . . . . Combat Hostiles . | . . . . . . . . . . . . . . . . . Parts Fried 1 | . . . . . . . . . 1 . . . . . . . Impact Corruptions . | . . . . . . . . . . . . . . . . . Robots Melted 1 | . . . . . . . . . 1 . . . . . . . Combat Hostiles 1 | . . . . . . . . . 1 . . . . . . . Parts Melted 11 | . . 1 . 3 . 2 . . 5 . . . . . . . Heat Transferred 4116 | 37 74 555 . 555 185 1073 962 . 675 . . . . . . . Parts Sabotaged . | . . . . . . . . . . . . . . . . . Parts Stolen . | . . . . . . . . . . . . . . . . . Parts Stripped . | . . . . . . . . . . . . . . . . . Power Chain Reactions 2 | . . . . . . 1 . . 1 . . . . . . . Alert | -11 -10 -10 -10 -9 -8 -8 -8 -7 -7 -7 -6 -6 -5 -5 -5 -5 ------- Run | Yrd Mat Min Exi Min Mat Gar Mat Fac Gar Fac Fac Ext Fac Gar Fac DSF Maximum Alert Level 2 | . . . . . . 2 1 . 1 . . . . . . . Low Security (%) 79 | 100 100 100 . 100 100 54 40 100 28 100 100 100 100 100 100 100 Level 1 19 | . . . . . . 40 59 . 71 . . . . . . . Level 2 . | . . . . . . 5 . . . . . . . . . . Level 3 . | . . . . . . . . . . . . . . . . . Level 4 . | . . . . . . . . . . . . . . . . . Level 5 . | . . . . . . . . . . . . . . . . . High Security . | . . . . . . . . . . . . . . . . . Max Security . | . . . . . . . . . . . . . . . . . Peak Influence 444 | . . 70 . 102 33 444 235 88 273 120 31 15 52 17 7 60 Initial 216 | . . . . . 24 4 216 88 47 106 21 . . 17 7 3 Average 77 | . . 17 . 65 4 184 198 78 200 78 4 2 5 8 1 23 Influence Increases 1582 | 5 . 140 . 162 86 460 189 . 256 39 25 15 125 15 5 60 Destroy 0b10 Robot/C 820 | . . 100 . 120 40 260 80 . 140 . . . 80 . . . Destroy 0b10 Robot/NC 40 | 5 . 5 . . 20 . 5 . 5 . . . . . . . Destroy Leader 118 | . . 20 . 20 6 20 22 . 20 . . . 10 . . . Allied During Kill 1 | . . . . . 1 . . . . . . . . . . . Successful Hack 48 | . . . . . 4 . . . . 24 10 . 5 . 5 . Disable Machine 90 | . . . . 15 15 . 15 . . . 15 15 15 . . . Anti-Garrison Action 150 | . . . . . . 100 . . 50 . . . . . . . Destroy Structure 45 | . . . . 7 . 20 7 . 11 . . . . . . . Partial Spotted 15 | . . . . . . . . . . . . . 15 . . . Lose Combat Pursuer 255 | . . 15 . . . 60 60 . 30 15 . . . 15 . 60 Influence Decreases 1522 | 5 . 133 7 100 141 23 438 127 121 197 70 15 100 25 15 5 Entered New Map 543 | . . . 7 . 38 3 228 107 21 97 24 . . 8 8 2 Time Decay 746 | 5 . 133 . 80 90 . 190 20 . 100 46 15 60 . 7 . Lost Part 220 | . . . . 20 . 20 20 . 100 . . . 40 17 . 3 Lost Ally 13 | . . . . . 13 . . . . . . . . . . . Squads Dispatched 8 | . 1 . . . . . 2 . . 1 2 . 1 . . 1 Investigation 4 | . . . . . . . 2 . . 1 1 . . . . . Extermination 2 | . . . . . . . . . . . 1 . 1 . . . Reinforcement 2 | . 1 . . . . . . . . . . . . . . 1 Assault . | . . . . . . . . . . . . . . . . . Garrison . | . . . . . . . . . . . . . . . . . Intercept . | . . . . . . . . . . . . . . . . . Searches Triggered . | . . . . . . . . . . . . . . . . . Construction Impeded . | . . . . . . . . . . . . . . . . . Haulers Reinforced . | . . . . . . . . . . . . . . . . . Active Scanning Responses . | . . . . . . . . . . . . . . . . . Cargo Convoy Interrupts . | . . . . . . . . . . . . . . . . . Stealth | -11 -10 -10 -10 -9 -8 -8 -8 -7 -7 -7 -6 -6 -5 -5 -5 -5 --------- Run | Yrd Mat Min Exi Min Mat Gar Mat Fac Gar Fac Fac Ext Fac Gar Fac DSF Distress Signals 2 | . . . . . 1 . . . . 1 . . . . . . Communications Jammed . | . . . . . . . . . . . . . . . . . Distress Signals . | . . . . . . . . . . . . . . . . . Times Spotted 92 | . 1 4 . 7 5 14 10 . 18 4 1 4 6 13 . 5 Peak Tracking Total 12 | . 1 2 . 4 5 5 5 . 10 3 1 4 4 12 3 3 Tactical Retreats 12 | . . 1 . . . 2 2 . 1 1 . . . 1 . 4 Traps | -11 -10 -10 -10 -9 -8 -8 -8 -7 -7 -7 -6 -6 -5 -5 -5 -5 ------- Run | Yrd Mat Min Exi Min Mat Gar Mat Fac Gar Fac Fac Ext Fac Gar Fac DSF Traps Triggered 10 | . 4 . . . . . 1 . 3 . . 1 . 1 . . Indirectly 2 | . . . . . . . . . 2 . . . . . . . Trap Hack Attempts . | . . . . . . . . . . . . . . . . . Triggered . | . . . . . . . . . . . . . . . . . Disarmed . | . . . . . . . . . . . . . . . . . Reprogrammed . | . . . . . . . . . . . . . . . . . Reused . | . . . . . . . . . . . . . . . . . Traps Extracted . | . . . . . . . . . . . . . . . . . Installed . | . . . . . . . . . . . . . . . . . Triggered . | . . . . . . . . . . . . . . . . . Machines | -11 -10 -10 -10 -9 -8 -8 -8 -7 -7 -7 -6 -6 -5 -5 -5 -5 ---------- Run | Yrd Mat Min Exi Min Mat Gar Mat Fac Gar Fac Fac Ext Fac Gar Fac DSF Machines Disabled 9 | . . . . 1 1 2 1 . 1 . 1 1 1 . . . Max in Single Turn 1 | . . . . 1 . 1 1 . 1 . 1 1 1 . . . Garrison Relay 3 | . . . . . . 2 . . 1 . . . . . . . Machines Repaired . | . . . . . . . . . . . . . . . . . Machines Dismantled . | . . . . . . . . . . . . . . . . . Machines Sabotaged . | . . . . . . . . . . . . . . . . . Overloaded Fab Kills . | . . . . . . . . . . . . . . . . . Hacking | -11 -10 -10 -10 -9 -8 -8 -8 -7 -7 -7 -6 -6 -5 -5 -5 -5 --------- Run | Yrd Mat Min Exi Min Mat Gar Mat Fac Gar Fac Fac Ext Fac Gar Fac DSF Machines Accessed 18 | . . . 2 . 2 1 1 1 . 3 4 1 2 . 1 . Terminals 9 | . . . . . 1 1 1 . . 1 2 1 1 . 1 . Fabricators 2 | . . . . . . . . . . 1 1 . . . . . Repair Stations . | . . . . . . . . . . . . . . . . . Recycling Units . | . . . . . . . . . . . . . . . . . Scanalyzers 2 | . . . . . . . . . . 1 1 . . . . . Garrison Access 3 | . . . . . 1 . . 1 . . . . 1 . . . Total Hacks 43 | . . . 5 . 2 1 4 2 . 10 11 2 4 . 2 . Successful 27 | . . . 5 . 2 1 3 2 . 5 4 1 3 . 1 . Failed 16 | . . . . . . . 1 . . 5 7 1 1 . 1 . Catastrophic 4 | . . . . . . . . . . 2 1 . 1 . . . Database Lockouts . | . . . . . . . . . . . . . . . . . Manual 1 | . . . 1 . . . . . . . . . . . . . Terminals 21 | . . . . . 1 1 4 . . 3 6 2 2 . 2 . Fabricators 8 | . . . . . . . . . . 5 3 . . . . . Repair Stations . | . . . . . . . . . . . . . . . . . Recycling Units . | . . . . . . . . . . . . . . . . . Scanalyzers 4 | . . . . . . . . . . 2 2 . . . . . Garrison Access 5 | . . . . . 1 . . 2 . . . . 2 . . . Terminal Hacks 16 | . . . 5 . 1 1 3 . . 1 2 1 1 . 1 . Record 7 | . . . 4 . . . 2 . . . 1 . . . . . Robot Analysis 1 | . . . . . . . . . . 1 . . . . . . Prototype ID Bank 1 | . . . . . . . . . . . . . 1 . . . Open Door 1 | . . . . . . . . . . . . 1 . . . . Open DSF 2 | . . . . . . . . . . . 1 . . . 1 . Zone Layout 2 | . . . . . 1 . 1 . . . . . . . . . Garrison Registry 1 | . . . . . . 1 . . . . . . . . . . Proto ID Catalog 1 | . . . 1 . . . . . . . . . . . . . Fabricator Hacks 3 | . . . . . . . . . . 2 1 . . . . . Network Status 2 | . . . . . . . . . . 1 1 . . . . . Build 1 | . . . . . . . . . . 1 . . . . . . Repair Station Hacks . | . . . . . . . . . . . . . . . . . Recycling Unit Hacks . | . . . . . . . . . . . . . . . . . Scanalyzer 3 | . . . . . . . . . . 2 1 . . . . . Retrieve Study 3 | . . . . . . . . . . 2 1 . . . . . Garrison Access Hacks 5 | . . . . . 1 . . 2 . . . . 2 . . . Unlock Access 3 | . . . . . 1 . . 1 . . . . 1 . . . Coupler Status 2 | . . . . . . . . 1 . . . . 1 . . . Unauthorized Hacks . | . . . . . . . . . . . . . . . . . Terminals . | . . . . . . . . . . . . . . . . . Fabricators . | . . . . . . . . . . . . . . . . . Repair Stations . | . . . . . . . . . . . . . . . . . Recycling Units . | . . . . . . . . . . . . . . . . . Scanalyzers . | . . . . . . . . . . . . . . . . . Garrison Access . | . . . . . . . . . . . . . . . . . Data Cores Recovered . | . . . . . . . . . . . . . . . . . Used . | . . . . . . . . . . . . . . . . . Hacking Detections 14 | . . . . . 1 . 1 1 . 3 4 1 2 . 1 . Full Trace Events 3 | . . . . . . . 1 . . 1 1 . . . . . Feedback Events . | . . . . . . . . . . . . . . . . . Feedback Blocked . | . . . . . . . . . . . . . . . . . Robot Schematics Acquired . | . . . . . . . . . . . . . . . . . Robots Built . | . . . . . . . . . . . . . . . . . Authchips . | . . . . . . . . . . . . . . . . . Time . | . . . . . . . . . . . . . . . . . Total Robot Build Rating . | . . . . . . . . . . . . . . . . . Part Schematics Acquired . | . . . . . . . . . . . . . . . . . Parts Built 2 | . . . . . . . . . . 2 . . . . . . Authchips . | . . . . . . . . . . . . . . . . . Time 84 | . . . . . . . . . . 84 . . . . . . Total Part Build Rating 8 | . . . . . . . . . . 8 . . . . . . Part Studies Acquired 3 | . . . . . . . . . . 2 1 . . . . . Parts Repaired . | . . . . . . . . . . . . . . . . . Time . | . . . . . . . . . . . . . . . . . Parts Recycled . | . . . . . . . . . . . . . . . . . Recycled Matter . | . . . . . . . . . . . . . . . . . Retrieved Matter . | . . . . . . . . . . . . . . . . . Retrieved Components . | . . . . . . . . . . . . . . . . . Parts Scanalyzed . | . . . . . . . . . . . . . . . . . Part Schematics Acquired . | . . . . . . . . . . . . . . . . . Parts Damaged . | . . . . . . . . . . . . . . . . . Bothacking | -11 -10 -10 -10 -9 -8 -8 -8 -7 -7 -7 -6 -6 -5 -5 -5 -5 ------------ Run | Yrd Mat Min Exi Min Mat Gar Mat Fac Gar Fac Fac Ext Fac Gar Fac DSF Used RIF Installer 2 | . . . . . . 1 . . . . . . . 1 . . Signal Jammer 1 | . . . . . . . . . . . . . . 1 . . Robots Hacked 4 | . . . . . . . . . . 3 1 . . . . . Non-combat 3 | . . . . . . . . . . 3 . . . . . . Combat 1 | . . . . . . . . . . . 1 . . . . . Robot Hacks Applied 5 | . . . . . . . . . . 4 1 . . . . . parse_system 1 | . . . . . . . . . . . 1 . . . . . no_distress 1 | . . . . . . . . . . 1 . . . . . . find_recycling 1 | . . . . . . . . . . 1 . . . . . . ignore_parts 1 | . . . . . . . . . . 1 . . . . . . overload_power 1 | . . . . . . . . . . 1 . . . . . . Relay Couplers Released 12 | . . . . . . 8 . . 4 . . . . . . . Machine Destruction 12 | . . . . . . 8 . . 4 . . . . . . . Attached 1 | . . . . . . . . . . 1 . . . . . . Fabnet Peak Effective % . | . . . . . . . . . . . . . . . . . Robots Rewired . | . . . . . . . . . . . . . . . . . Allies Hacked . | . . . . . . . . . . . . . . . . . Hacks Repelled . | . . . . . . . . . . . . . . . . . Allies | -11 -10 -10 -10 -9 -8 -8 -8 -7 -7 -7 -6 -6 -5 -5 -5 -5 -------- Run | Yrd Mat Min Exi Min Mat Gar Mat Fac Gar Fac Fac Ext Fac Gar Fac DSF Total Allies 1 | . . . . 1 . . . . . . . . . . . . Largest Group 1 | . . . . 1 1 . . . . . . . . . . . Highest-Rated Group 31 | . . . . 31 31 . . . . . . . . . . . Highest-Rated Ally 31 | . . . . 31 31 . . . . . . . . . . . Total Orders . | . . . . . . . . . . . . . . . . . Ally Attacks 12 | . . . . . 12 . . . . . . . . . . . Total Damage 145 | . . . . . 145 . . . . . . . . . . . Kills 1 | . . . . . 1 . . . . . . . . . . . Allies Corrupted . | . . . . . . . . . . . . . . . . . Allies Melted . | . . . . . . . . . . . . . . . . . Intel | -11 -10 -10 -10 -9 -8 -8 -8 -7 -7 -7 -6 -6 -5 -5 -5 -5 ------- Run | Yrd Mat Min Exi Min Mat Gar Mat Fac Gar Fac Fac Ext Fac Gar Fac DSF Active Infowar (turns) 5148 | 24 60 521 635 167 595 683 390 58 612 209 350 176 634 34 . . Sensors 835 | . . . . . . . . . . . 59 176 592 8 . . Traps 1858 | . . . . . 298 . . 58 148 209 350 176 592 27 . . Seismic 2004 | 24 60 521 635 167 595 2 . . . . . . . . . . T.N.C. 3434 | . . . . . 288 683 390 58 612 209 350 176 634 34 . . Jamming 5 | . . . . . . . . . . 5 . . . . . . Robot Analysis Total 1 | . . . . . . . . . . 1 . . . . . . Derelict Logs Recovered 1 | . . 1 . . . . . . . . . . . . . . Drone Launches . | . . . . . . . . . . . . . . . . . Drone Recoveries . | . . . . . . . . . . . . . . . . . Exploration | -11 -10 -10 -10 -9 -8 -8 -8 -7 -7 -7 -6 -6 -5 -5 -5 -5 ------------- Run | Yrd Mat Min Exi Min Mat Gar Mat Fac Gar Fac Fac Ext Fac Gar Fac DSF Turns Passed 5499 | 118 74 521 635 167 595 683 390 58 612 209 350 176 634 54 97 126 Spaces Moved 3450 | 72 46 306 527 45 236 315 163 31 327 219 312 161 308 73 184 125 Core 401 | 6 1 . . 38 28 . . . 42 49 . 5 . 32 89 111 Treads 1019 | . . . . . 174 315 163 31 285 . 51 . . . . . Legs 951 | 66 45 306 527 7 . . . . . . . . . . . . Wheels 709 | . . . . . . . . . . 64 261 156 228 . . . Hover 295 | . . . . . 34 . . . . 106 . . 46 . 95 14 Flight 75 | . . . . . . . . . . . . . 34 41 . . Fastest Speed 26 | 50 100 120 120 120 170 170 170 170 50 50 90 90 31 26 41 41 Average Speed 120 | 114 119 120 120 315 192 170 170 170 155 68 102 103 76 46 45 52 Slowest Speed 440 | 120 120 120 120 350 350 170 170 170 250 100 160 105 440 112 50 111 Overloaded Moves . | . . . . . . . . . . . . . . . . . Propulsion Burnouts . | . . . . . . . . . . . . . . . . . Robots Hopped . | . . . . . . . . . . . . . . . . . Potential Cave-ins . | . . . . . . . . . . . . . . . . . Cave-ins Triggered 1 | . . . . . . 1 . . . . . . . . . . Exploration Rate (%) 25 | 4 14 57 91 14 16 42 20 1 40 5 9 27 5 28 8 49 Regions Visited 16 Branch Regions 4 Pre-discovered Areas 1 | . . . 1 . . . . . . . . . . . . . Known Exits Taken 7 | . . . 1 . 1 . . 1 . . 1 1 1 . 1 . Unknown Exits Taken 6 | 1 1 1 . 1 . . 1 . . 1 . . . . . . Scrap Searched . | . . . . . . . . . . . . . . . . . Spaces Dug . | . . . . . . . . . . . . . . . . . Terrain Destroyed 28 | . . . . 8 . 6 7 . 7 . . . . . . . Melee . | . . . . . . . . . . . . . . . . . Projectile 16 | . . . . 8 . 1 7 . . . . . . . . . AOE 12 | . . . . . . 5 . . 7 . . . . . . . Terrain Rammed . | . . . . . . . . . . . . . . . . . Walls Destroyed . | . . . . . . . . . . . . . . . . . Machines Disabled . | . . . . . . . . . . . . . . . . . Actions | -11 -10 -10 -10 -9 -8 -8 -8 -7 -7 -7 -6 -6 -5 -5 -5 -5 --------- Run | Yrd Mat Min Exi Min Mat Gar Mat Fac Gar Fac Fac Ext Fac Gar Fac DSF Total 4620 | 103 58 430 531 73 359 429 269 36 389 270 338 170 693 91 197 184 Wait 871 | 17 . 106 . 24 88 74 85 2 23 31 10 . 354 . 7 50 Move 3432 | 71 45 305 526 44 235 314 162 30 325 218 311 160 307 71 183 125 Hop . | . . . . . . . . . . . . . . . . . Pick Up 34 | 7 3 1 2 2 5 3 3 . . 1 3 . 3 . 1 . Fast Attach 41 | 6 6 . . . 9 1 1 . . 5 5 . 5 . 2 1 Attach 30 | 1 1 . . 1 2 2 3 3 1 2 1 . 7 . 2 4 Detach 9 | . . . . . . 2 . . . . 1 1 3 . 1 1 Swap 14 | . . 1 . . 3 7 1 1 . . . . 1 . . . Drop 29 | . 1 1 3 2 7 4 4 . 1 . 2 . 2 . 1 1 Fire 111 | 1 2 16 . . 10 22 6 . 26 9 5 1 11 . . 2 Melee . | . . . . . . . . . . . . . . . . . Ram 16 | . . . . . . . . . . 4 . . . 12 . . Kick . | . . . . . . . . . . . . . . . . . Crush 4 | . . . . . . . 4 . . . . . . . . . Escape Stasis 29 | . . . . . . . . . 13 . . 8 . 8 . . Rewire . | . . . . . . . . . . . . . . . . . Trap . | . . . . . . . . . . . . . . . . . Miscellaneous . | . . . . . . . . . . . . . . . . . Route ------- -11/Scrapyard -10/Materials -10/Mines (discovered 2 exits: [*Mat] / *Exi) -10/Exiles (discovered 2 exits: *Min x2) -9/Mines -8/Materials -8/Garrison (discovered 3 exits: *Mat x3) -8/Materials (discovered 2 exits: *Fac / [Sto]) -7/Factory -7/Garrison -7/Factory -6/Factory (discovered 2 exits: [*Low] / *Ext) -6/Extension -5/Factory (discovered 2 exits: [*Upp] / Gar) -5/Garrison -5/Factory -5/DSF History --------- Turn | Location | Event 7 | -11/Scrapyard | Discovered new exit (range 15) 119 | -11/Scrapyard | Entered Materials 171 | -10/Materials | Discovered new exit (range 6) 193 | -10/Materials | Entered Mines 194 | -10/Mines | Assembled infested the area 305 | -10/Mines | Build established: Mutant 647 | -10/Mines | Discovered new exit (range 7) 706 | -10/Mines | Deemed a non-threat by the Exiles lab entrance 706 | -10/Mines | Discovered new exit (range 5) 714 | -10/Mines | Entered Exiles 715 | -10/Exiles | Identified exit to Mines 778 | -10/Exiles | Met 8R-AWN 796 | -10/Exiles | Met EX-HEX 889 | -10/Exiles | Met EX-DEC 908 | -10/Exiles | Visited The Gauntlet 1051 | -10/Exiles | Learned location of Zion (-6) 1179 | -10/Exiles | Met EX-BIN 1200 | -10/Exiles | Aligned with FarCom system 1201 | -10/Exiles | Given EX-Vault access code 1228 | -10/Exiles | Opened EX-Vault 1238 | -10/Exiles | Found AWS/Thermal 1260 | -10/Exiles | Warned to stay clear of 0b10 Research branches 1349 | -10/Exiles | Left Exiles lab with AWS/Thermal 1349 | -10/Exiles | Entered Mines 1425 | -9/Mines | Discovered new exit (range 15) 1486 | -9/Mines | Escorted by a lone wolf Derelict 1516 | -9/Mines | Entered Materials 1516 | -8/Materials | Accompanied by 1 ally 1516 | -8/Materials | Evolved 4 slots: Propulsion x2, Utility x2 2102 | -8/Materials | Build established: Skirmisher 2103 | -8/Materials | Identified exit to Garrison 2111 | -8/Materials | Entered Garrison 2299 | -8/Garrison | Triggered checkpoint 2327 | -8/Garrison | Garrison Relay disabled 2355 | -8/Garrison | Discovered new exit (range 52) 2355 | -8/Garrison | Discovered new exit (range 53) 2355 | -8/Garrison | Discovered new exit (range 69) 2403 | -8/Garrison | Build established: Mutant 2457 | -8/Garrison | Triggered checkpoint 2488 | -8/Garrison | Crushed by falling debris 2577 | -8/Garrison | Triggered checkpoint 2692 | -8/Garrison | Installed Relay Interface Framework 2758 | -8/Garrison | Garrison Relay disabled 2794 | -8/Garrison | Entered Materials 3150 | -8/Materials | Discovered new exit (range 16) 3150 | -8/Materials | Discovered new exit (range 20) 3184 | -8/Materials | Entered Factory 3184 | -7/Factory | Evolved 2 slots: Utility x1, Weapon x1 3233 | -7/Factory | Identified exit to Garrison 3242 | -7/Factory | Entered Garrison 3312 | -7/Garrison | Triggered checkpoint 3416 | -7/Garrison | Triggered checkpoint 3474 | -7/Garrison | Build established: Skirmisher 3802 | -7/Garrison | Triggered checkpoint 3811 | -7/Garrison | Triggered checkpoint 3845 | -7/Garrison | Discovered new exit (range 15) 3854 | -7/Garrison | Entered Factory 3875 | -7/Factory | Lost 7 parts (1p2n1u3w) 3949 | -7/Factory | Fabricated Transmission Jammer (x2) 4042 | -7/Factory | Discovered new exit (range 8) 4063 | -7/Factory | Entered another Factory area 4063 | -6/Factory | Evolved 2 slots: Propulsion x1, Utility x1 4236 | -6/Factory | Discovered new exit (range 15) 4250 | -6/Factory | Build established: Mutant 4254 | -6/Factory | Identified exit to DSF 4297 | -6/Factory | Discovered new exit (range 10) 4412 | -6/Factory | Identified exit to Extension 4413 | -6/Factory | Entered Extension 4442 | -6/Extension | Disrupted transfer network 4569 | -6/Extension | Spotted B-75 Beast 4577 | -6/Extension | Spotted B-75 Beast 4586 | -6/Extension | Discovered new exit (range 3) 4588 | -6/Extension | Identified exit to Factory 4589 | -6/Extension | Entered Factory 4589 | -5/Factory | Evolved 2 slots: Power x1, Utility x1 4616 | -5/Factory | Lost 5 parts (1p3n1w) 5183 | -5/Factory | Lost 4 parts (1n2u1w) 5217 | -5/Factory | Discovered new exit (range 14) 5223 | -5/Factory | Identified exit to Garrison 5223 | -5/Factory | Entered Garrison 5231 | -5/Garrison | Spotted B-75 Beast 5233 | -5/Garrison | Triggered checkpoint 5233 | -5/Garrison | Triggered checkpoint 5251 | -5/Garrison | Discovered new exit (range 12) 5255 | -5/Garrison | Expanded RIF knowledge: Signal Jamming 5265 | -5/Garrison | Core integrity fell below 50% 5276 | -5/Garrison | Identified exit to Factory 5277 | -5/Garrison | Entered Factory 5288 | -5/Factory | Lost 10 parts (1p5n3u1w) 5374 | -5/Factory | Identified exit to DSF 5374 | -5/Factory | Entered DSF 5401 | -5/DSF | Additional patrols routed to DSF 5418 | -5/DSF | Core integrity fell below 20% 5500 | -5/DSF | Destroyed by C-35 Carver with Carbide Saw Last Messages --------------- AMBIENT_HEAT=-10 GOAL=ESCAPE 05374_ Receiving FarCom transmissions... 05378_ Acquired Adv. Shield Generator. 05389_ Cld. Airjet destroyed. 05389_ Knocked back. 05389_ Dropped Adv. Shield Generator. 05401_ Hostiles detected in DSF, routing additional patrols. 05415_ ASMD6DS,XK7ATT8EILENE8 9U4>/8RW